fUSD/lending_fUSD_20260605
["ID","MTS","AMOUNT","RATE_DAILY","PERIOD"]
[424115583,1780601445000,-572.76,0.00022466,2]
[424115593,1780601445000,-2157.14243826,0.00022497,2]
[424115591,1780601445000,-217.15233878,0.00022497,2]
[424115578,1780601445000,-852.5031962,0.00022441,2]
[424115581,1780601445000,-151.0,0.00022444,2]
[424115571,1780601445000,-158.39,0.00022426,2]
[424115573,1780601445000,-158.39,0.00022426,2]
[424115524,1780601445000,-852.5031962,0.00022189,2]
[424115540,1780601445000,-151.0,0.00022279,2]
[424115526,1780601445000,-2435.69,0.00022194,2]
[424115463,1780601445000,-151.0,0.00021949,2]
[424115520,1780601445000,-151.0,0.00022114,2]
[424115589,1780601445000,-200.0,0.00022497,2]
[424115465,1780601445000,-151.0,0.00021949,2]
[424115478,1780601445000,-151.0,0.00021949,2]
[424115476,1780601445000,-151.0,0.00021949,2]
[424115467,1780601445000,-151.0,0.00021949,2]
[424115471,1780601445000,-152.72135637,0.00021949,2]
[424115480,1780601445000,-151.0,0.00021949,2]
[424115484,1780601445000,-151.0,0.00021949,2]
[424115469,1780601445000,-151.0,0.00021949,2]
[424115473,1780601445000,-151.0,0.00021949,2]
[424115486,1780601445000,-200.0,0.00021949,2]
[424115490,1780601445000,-151.0,0.00021949,2]
[424115488,1780601445000,-151.0,0.00021949,2]
[424115498,1780601445000,-151.0,0.00021949,2]
[424115494,1780601445000,-151.0,0.00021949,2]
[424115501,1780601445000,-500.0,0.00022,3]
[424115491,1780601445000,-151.0,0.00021949,2]
[424115492,1780601445000,-151.0,0.00021949,2]
[424115500,1780601445000,-500.0,0.00022,3]
[424115496,1780601445000,-151.0,0.00021949,2]
[424115504,1780601445000,-500.0,0.00022,3]
[424115513,1780601445000,-151.0,0.00022004,2]
[424115505,1780601445000,-500.0,0.00022,3]
[424115507,1780601445000,-500.0,0.00022,3]
[424115509,1780601445000,-861.507014,0.00022,2]
[424115511,1780601445000,-328.8,0.00022,2]
[424115515,1780601445000,-150.0,0.00022016,2]
[424115517,1780601445000,-151.0,0.00022059,2]
[424115522,1780601445000,-151.0,0.00022169,2]
[424115519,1780601445000,-852.5031962,0.00022078,2]
[424115585,1780601445000,-1927.4,0.00022466,2]
[424115482,1780601445000,-151.0,0.00021949,2]
[424115574,1780601445000,-158.39,0.00022426,2]
[424115648,1780601445000,-500.0,0.00022552,2]
[424115652,1780601445000,-152.0,0.00022552,2]
[424115647,1780601445000,-500.0,0.00022552,2]
[424115649,1780601445000,-152.0,0.00022552,2]
[424115650,1780601445000,-500.0,0.00022552,2]
[424115653,1780601445000,-500.0,0.00022552,2]
[424115654,1780601445000,-152.0,0.00022552,2]
[424115663,1780601445000,-1376.0,0.0002256,2]
[424115665,1780601445000,-682.0,0.00022563,2]
[424115666,1780601445000,-719.04747942,0.00022607,2]
[424115674,1780601445000,-151.0,0.00022719,2]
[424115672,1780601445000,-773.24136889,0.00022717,2]
[424115670,1780601445000,-745.65223615,0.00022662,2]
[424115677,1780601445000,-831.51979762,0.00022827,2]
[424115669,1780601445000,-745.65223615,0.00022662,2]
[424115668,1780601445000,-719.04747942,0.00022607,2]
[424115673,1780601445000,-556.59266845,0.00022717,2]
[424115680,1780601445000,-894.19061325,0.00022937,2]
[424115676,1780601445000,-801.85129954,0.00022772,2]
[424115678,1780601445000,-862.28603014,0.00022882,2]
[424115682,1780601445000,-927.27566594,0.00022992,2]
[424115694,1780601445000,-2236.95670847,0.00023045,2]
[424115695,1780601445000,-200.0,0.00023045,2]
[424115692,1780601445000,-225.18697532,0.00023045,2]
[424115681,1780601445000,-200.0,0.00022987,2]
[424115569,1780601445000,-151.0,0.00022389,2]
[424115684,1780601445000,-861.507014,0.00023,2]
[424115690,1780601445000,-200.0,0.00023045,2]
[424115689,1780601445000,-947.51,0.00023038,2]
[424115660,1780601445000,-408.0,0.00022557,2]
[424115645,1780601445000,-209.40437684,0.00022552,2]
[424115686,1780601445000,-578.96,0.00023038,2]
[424115659,1780601445000,-500.0,0.00022552,2]
[424115662,1780601445000,-1331.0,0.0002256,2]
[424115587,1780601445000,-1097.14,0.00022466,2]
[424115595,1780601445000,-200.0,0.00022497,2]
[424115606,1780601445000,-151.0,0.00022499,2]
[424115599,1780601445000,-1481.2378076,0.00022497,2]
[424115601,1780601445000,-181.08010149,0.00022497,2]
[424115614,1780601445000,-152.0,0.00022552,2]
[424115604,1780601445000,-200.0,0.00022497,2]
[424115616,1780601445000,-743.50770149,0.00022552,2]
[424115617,1780601445000,-152.0,0.00022552,2]
[424115610,1780601445000,-151.0,0.00022552,2]
[424115612,1780601445000,-279.9045709,0.00022552,2]
[424115608,1780601445000,-36096.85512917,0.000225,2]
[424115619,1780601445000,-500.0,0.00022552,2]
[424115597,1780601445000,-500.0,0.00022497,2]
[424115634,1780601445000,-500.0,0.00022552,2]
[424115632,1780601445000,-152.0,0.00022552,2]
[424115644,1780601445000,-500.0,0.00022552,2]
[424115625,1780601445000,-209.40437684,0.00022552,2]
[424115641,1780601445000,-693.39197629,0.00022552,2]
[424115630,1780601445000,-152.0,0.00022552,2]
[424115627,1780601445000,-500.0,0.00022552,2]
[424115656,1780601445000,-500.0,0.00022552,2]
[424115624,1780601445000,-152.0,0.00022552,2]
[424115622,1780601445000,-693.39197629,0.00022552,2]
[424115642,1780601445000,-152.0,0.00022552,2]
[424115657,1780601445000,-152.0,0.00022552,2]
[424115640,1780601445000,-693.39197629,0.00022552,2]
[424115638,1780601445000,-500.0,0.00022552,2]
[424115636,1780601445000,-152.0,0.00022552,2]
[424115772,1780601446000,-2319.72410669,0.00023593,2]
[424115783,1780601446000,-200.0,0.00023593,2]
[424115774,1780601446000,-200.0,0.00023593,2]
[424115777,1780601446000,-500.0,0.00023593,2]
[424115779,1780601446000,-1592.87721992,0.00023593,2]
[424115793,1780601446000,-206.87657143,0.00023648,2]
[424115789,1780601446000,-799.54513344,0.00023648,2]
[424115791,1780601446000,-225.18697532,0.00023648,2]
[424115785,1780601446000,-1279.79,0.000236,2]
[424115787,1780601446000,-301.0006985,0.00023648,2]
[424115781,1780601446000,-194.72792766,0.00023593,2]
[424115771,1780601446000,-233.5188934,0.00023593,2]
[424115804,1780601446000,-257.95864425,0.00024,2]
[424115797,1780601446000,-155.14,0.00023671,2]
[424115815,1780601446000,-286.43716516,0.00024,2]
[424115809,1780601446000,-8068.71507145,0.00024,2]
[424115799,1780601446000,-553.1,0.000237,7]
[424115813,1780601446000,-191.75475384,0.00024,2]
[424115807,1780601446000,-977.1744,0.00024,2]
[424115801,1780601446000,-200.0,0.00023764,2]
[424115811,1780601446000,-182.44233934,0.00024,2]
[424115802,1780601446000,-156.587,0.00023921,2]
[424115806,1780601446000,-195.03272996,0.00024,2]
[424115817,1780601446000,-861.507014,0.00024,2]
[424115769,1780601446000,-200.0,0.00023593,2]
[424115795,1780601446000,-745.65223615,0.00023648,2]
[424115765,1780601446000,-297.69,0.0002343,2]
[424115726,1780601446000,-1094.28,0.00023266,2]
[424115758,1780601446000,-225.81231694,0.00023422,2]
[424115697,1780601446000,-500.0,0.00023045,2]
[424115699,1780601446000,-1536.04360648,0.00023045,2]
[424115701,1780601446000,-187.78006524,0.00023045,2]
[424115703,1780601446000,-200.0,0.00023045,2]
[424115707,1780601446000,-290.26104002,0.000231,2]
[424115709,1780601446000,-771.01748644,0.000231,2]
[424115711,1780601446000,-217.15233878,0.000231,2]
[424115713,1780601446000,-719.04747942,0.000231,2]
[424115705,1780601446000,-961.58486558,0.00023047,2]
[424115722,1780601446000,-334.0,0.00023248,2]
[424115718,1780601446000,-997.16350561,0.00023102,2]
[424115716,1780601446000,-217.15233878,0.000231,2]
[424115720,1780601446000,-1000.0,0.00023116,2]
[424115724,1780601446000,-765.01,0.00023266,2]
[424115728,1780601446000,-219.03646807,0.00023267,2]
[424115731,1780601446000,-584.0972482,0.00023267,2]
[424115732,1780601446000,-229.19,0.00023288,2]
[424115735,1780601446000,-2000.0,0.00023333,7]
[424115745,1780601446000,-154.11024229,0.00023422,2]
[424115748,1780601446000,-154.0,0.00023422,2]
[424115752,1780601446000,-166.0,0.00023422,2]
[424115742,1780601446000,-947.51,0.00023367,2]
[424115739,1780601446000,-578.96,0.00023367,2]
[424115755,1780601446000,-166.0,0.00023422,2]
[424115761,1780601446000,-5672.85,0.0002343,2]
[424115767,1780601446000,-5694.07,0.00023431,7]
[424115819,1780601446000,-3169.04614476,0.00024,2]
[424115821,1780601446000,-2500.0,0.00024105,2]
[424115825,1780601446000,-1500.0,0.00024105,30]
[424115877,1780601446000,-589.0,0.00024384,7]
[424115879,1780601446000,-589.0,0.00024384,7]
[424115880,1780601446000,-589.0,0.00024384,7]
[424115878,1780601446000,-589.0,0.00024384,7]
[424115881,1780601446000,-589.0,0.00024384,7]
[424115882,1780601446000,-589.0,0.00024384,7]
[424115886,1780601446000,-589.0,0.00024384,7]
[424115896,1780601446000,-589.0,0.00024384,7]
[424115898,1780601446000,-589.0,0.00024384,7]
[424115900,1780601446000,-589.0,0.00024384,7]
[424115899,1780601446000,-589.0,0.00024384,7]
[424115902,1780601446000,-203.07400158,0.00024384,2]
[424115888,1780601446000,-589.0,0.00024384,7]
[424115895,1780601446000,-589.0,0.00024384,7]
[424115890,1780601446000,-589.0,0.00024384,7]
[424115894,1780601446000,-589.0,0.00024384,7]
[424115892,1780601446000,-589.0,0.00024384,7]
[424115904,1780601446000,-589.0,0.00024384,7]
[424115906,1780601446000,-589.0,0.00024384,7]
[424115907,1780601446000,-600.19080417,0.00024384,7]
[424115908,1780601446000,-151.0,0.00024384,2]
[424115903,1780601446000,-589.0,0.00024384,7]
[424115905,1780601446000,-268.061888,0.00024384,2]
[424115909,1780601446000,-151.0,0.00024384,2]
[424115823,1780601446000,-1100.0,0.00024105,2]
[424115874,1780601446000,-315.0,0.000243,2]
[424115875,1780601446000,-309.0,0.000243,2]
[424115901,1780601446000,-589.0,0.00024384,7]
[424115872,1780601446000,-3762.82462446,0.0002421,2]
[424115835,1780601446000,-200.0,0.00024141,2]
[424115876,1780601446000,-3430.7,0.00024324,2]
[424115839,1780601446000,-1651.81367706,0.00024141,2]
[424115829,1780601446000,-200.0,0.00024141,2]
[424115827,1780601446000,-501.16,0.0002411,2]
[424115833,1780601446000,-2405.55389863,0.00024141,2]
[424115831,1780601446000,-242.15909246,0.00024141,2]
[424115837,1780601446000,-500.0,0.00024141,2]
[424115841,1780601446000,-201.93286098,0.00024141,2]
[424115845,1780601446000,-400.14,0.00024174,2]
[424115846,1780601446000,-11422.57,0.00024174,2]
[424115853,1780601446000,-4530.15,0.00024174,2]
[424115854,1780601446000,-13950.2,0.00024174,2]
[424115843,1780601446000,-200.0,0.00024141,2]
[424115871,1780601446000,-191.75475384,0.000242,2]
[424115849,1780601446000,-2794.86,0.00024174,2]
[424115869,1780601446000,-977.1744,0.000242,2]
[424115867,1780601446000,-773.24136889,0.00024196,2]
[424115865,1780601446000,-829.12830338,0.00024196,2]
[424115868,1780601446000,-195.03272996,0.000242,2]
[424115864,1780601446000,-312.13772435,0.00024196,2]
[424115870,1780601446000,-8068.71507145,0.000242,2]
[424115866,1780601446000,-233.5188934,0.00024196,2]
[424115873,1780601446000,-282.0,0.000243,2]
[424115851,1780601446000,-23038.87,0.00024174,2]
[424115883,1780601446000,-589.0,0.00024384,7]
[424115884,1780601446000,-589.0,0.00024384,7]
[424115972,1780601447000,-500.0,0.00024384,7]
[424115969,1780601447000,-500.0,0.00024384,7]
[424115976,1780601447000,-500.0,0.00024384,7]
[424115986,1780601447000,-500.0,0.00024384,7]
[424115985,1780601447000,-500.0,0.00024384,7]
[424115970,1780601447000,-500.0,0.00024384,7]
[424115975,1780601447000,-500.0,0.00024384,7]
[424115983,1780601447000,-500.0,0.00024384,7]
[424115980,1780601447000,-208.03381405,0.00024384,7]
[424115978,1780601447000,-500.0,0.00024384,7]
[424115989,1780601447000,-500.0,0.00024384,7]
[424115967,1780601447000,-500.0,0.00024384,7]
[424115991,1780601447000,-500.0,0.00024384,7]
[424116008,1780601447000,-150.0,0.00024384,2]
[424115996,1780601447000,-500.0,0.00024384,7]
[424115999,1780601447000,-500.0,0.00024384,7]
[424116000,1780601447000,-500.0,0.00024384,7]
[424115993,1780601447000,-500.0,0.00024384,7]
[424116012,1780601447000,-500.0,0.00024384,7]
[424116002,1780601447000,-312.85414805,0.00024384,7]
[424116004,1780601447000,-500.0,0.00024384,7]
[424116016,1780601447000,-150.0,0.00024384,2]
[424116014,1780601447000,-263.31961361,0.00024384,7]
[424116010,1780601447000,-500.0,0.00024384,7]
[424116006,1780601447000,-537.42229834,0.00024384,7]
[424116030,1780601447000,-500.0,0.00024384,7]
[424115965,1780601447000,-500.0,0.00024384,7]
[424115995,1780601447000,-482.26296228,0.00024384,7]
[424115963,1780601447000,-500.0,0.00024384,7]
[424115911,1780601447000,-168.32577459,0.00024384,7]
[424115949,1780601447000,-500.0,0.00024384,7]
[424115915,1780601447000,-500.0,0.00024384,7]
[424115914,1780601447000,-201.81953216,0.00024384,7]
[424115910,1780601447000,-151.0,0.00024384,2]
[424115913,1780601447000,-150.0,0.00024384,7]
[424115912,1780601447000,-150.0,0.00024384,7]
[424115916,1780601447000,-500.0,0.00024384,7]
[424115921,1780601447000,-150.0,0.00024384,7]
[424115919,1780601447000,-500.0,0.00024384,7]
[424115923,1780601447000,-500.0,0.00024384,7]
[424115925,1780601447000,-475.49351836,0.00024384,7]
[424115927,1780601447000,-500.0,0.00024384,7]
[424115931,1780601447000,-500.0,0.00024384,7]
[424115929,1780601447000,-500.0,0.00024384,7]
[424115917,1780601447000,-500.0,0.00024384,7]
[424115939,1780601447000,-500.0,0.00024384,7]
[424115934,1780601447000,-500.0,0.00024384,7]
[424115936,1780601447000,-500.0,0.00024384,7]
[424115933,1780601447000,-500.0,0.00024384,7]
[424115953,1780601447000,-500.0,0.00024384,7]
[424115945,1780601447000,-500.0,0.00024384,7]
[424115943,1780601447000,-500.0,0.00024384,7]
[424115941,1780601447000,-500.0,0.00024384,7]
[424115950,1780601447000,-500.0,0.00024384,7]
[424116032,1780601447000,-150.0,0.00024384,7]
[424115955,1780601447000,-500.0,0.00024384,7]
[424115947,1780601447000,-500.0,0.00024384,7]
[424115959,1780601447000,-500.0,0.00024384,7]
[424115961,1780601447000,-500.0,0.00024384,7]
[424116036,1780601447000,-165.67944805,0.00024384,7]
[424115957,1780601447000,-451.29002174,0.00024384,7]
[424116018,1780601447000,-500.0,0.00024384,7]
[424116095,1780601447000,-151.0,0.00024658,2]
[424116105,1780601447000,-150.0,0.00024658,7]
[424116106,1780601447000,-599.60298507,0.00024688,2]
[424116107,1780601447000,-747.80937859,0.00024688,2]
[424116108,1780601447000,-187.78006521,0.00024689,2]
[424116097,1780601447000,-151.0,0.00024658,2]
[424116102,1780601447000,-151.0,0.00024658,2]
[424116101,1780601447000,-151.0,0.00024658,2]
[424116098,1780601447000,-151.0,0.00024658,2]
[424116100,1780601447000,-151.0,0.00024658,2]
[424116104,1780601447000,-242.02,0.00024658,2]
[424116103,1780601447000,-278.369135,0.00024658,2]
[424116109,1780601447000,-200.0,0.00024689,2]
[424116093,1780601447000,-151.0,0.00024658,2]
[424116110,1780601447000,-2494.55939288,0.00024689,2]
[424116111,1780601447000,-200.0,0.00024689,2]
[424116114,1780601447000,-209.40437684,0.00024689,2]
[424116120,1780601447000,-859.8060506,0.00024744,2]
[424116119,1780601447000,-323.68682015,0.00024744,2]
[424116113,1780601447000,-1712.93078311,0.00024689,2]
[424116118,1780601447000,-254.81,0.000247,2]
[424116112,1780601447000,-500.0,0.00024689,2]
[424116116,1780601447000,-977.1744,0.000247,2]
[424116115,1780601447000,-200.0,0.00024689,2]
[424116122,1780601447000,-278.07310317,0.00024744,2]
[424116121,1780601447000,-242.15909246,0.00024744,2]
[424116124,1780601447000,-328.8,0.00024811,7]
[424116034,1780601447000,-500.0,0.00024384,7]
[424116117,1780601447000,-8068.71507145,0.000247,2]
[424116091,1780601447000,-151.0,0.00024658,2]
[424116123,1780601447000,-1357.0,0.00024798,2]
[424116084,1780601447000,-151.0,0.00024658,2]
[424116082,1780601447000,-151.0,0.00024658,2]
[424116038,1780601447000,-500.0,0.00024384,7]
[424116022,1780601447000,-500.0,0.00024384,7]
[424116028,1780601447000,-500.0,0.00024384,7]
[424116024,1780601447000,-500.0,0.00024384,7]
[424116040,1780601447000,-500.0,0.00024384,7]
[424116042,1780601447000,-500.0,0.00024384,7]
[424116026,1780601447000,-218.63873992,0.00024384,7]
[424116056,1780601447000,-240.712995,0.000245,2]
[424116054,1780601447000,-240.712995,0.000245,2]
[424116058,1780601447000,-240.712995,0.000245,2]
[424116046,1780601447000,-977.1744,0.000245,2]
[424116044,1780601447000,-181.45627515,0.00024384,7]
[424116062,1780601447000,-200.0,0.00024542,2]
[424116020,1780601447000,-500.0,0.00024384,7]
[424116049,1780601447000,-8068.71507145,0.000245,2]
[424116060,1780601447000,-240.712991,0.000245,2]
[424116086,1780601447000,-151.0,0.00024658,2]
[424116089,1780601447000,-151.0,0.00024658,2]
[424116070,1780601447000,-1000.0,0.00024658,2]
[424116078,1780601447000,-151.0,0.00024658,2]
[424116076,1780601447000,-151.0,0.00024658,2]
[424116080,1780601447000,-151.0,0.00024658,2]
[424116074,1780601447000,-151.0,0.00024658,2]
[424116068,1780601447000,-172.18528025,0.0002465,2]
[424116066,1780601447000,-1725.0,0.00024626,5]
[424116064,1780601447000,-1288.0,0.00024626,5]
[424116051,1780601447000,-191.75475384,0.000245,2]
[424116072,1780601447000,-151.0,0.00024658,2]
[424116162,1780601448000,-1547.0,0.00025099,3]
[424116168,1780601448000,-153.0,0.00025099,3]
[424116163,1780601448000,-1547.0,0.00025099,3]
[424116160,1780601448000,-1547.0,0.00025099,3]
[424116161,1780601448000,-1547.0,0.00025099,3]
[424116169,1780601448000,-153.0,0.00025099,3]
[424116159,1780601448000,-1547.0,0.00025099,3]
[424116158,1780601448000,-1547.0,0.00025099,3]
[424116166,1780601448000,-152.0,0.00025099,3]
[424116152,1780601448000,-187.729829,0.00025,2]
[424116165,1780601448000,-152.0,0.00025099,3]
[424116157,1780601448000,-150.0,0.00025096,21]
[424116179,1780601448000,-5694.07,0.00025146,7]
[424116164,1780601448000,-1547.0,0.00025099,3]
[424116171,1780601448000,-1547.0,0.00025099,3]
[424116178,1780601448000,-1547.0,0.00025099,3]
[424116177,1780601448000,-153.0,0.00025099,3]
[424116180,1780601448000,-8068.71507145,0.000252,2]
[424116175,1780601448000,-152.0,0.00025099,3]
[424116172,1780601448000,-1547.0,0.00025099,3]
[424116181,1780601448000,-237.53189445,0.00025237,2]
[424116174,1780601448000,-1547.0,0.00025099,3]
[424116170,1780601448000,-1547.0,0.00025099,3]
[424116173,1780601448000,-1547.0,0.00025099,3]
[424116155,1780601448000,-173.0,0.00025,7]
[424116176,1780601448000,-152.0,0.00025099,3]
[424116167,1780601448000,-153.0,0.00025099,3]
[424116154,1780601448000,-187.729825,0.00025,2]
[424116138,1780601448000,-620.59546495,0.00025,2]
[424116153,1780601448000,-187.729829,0.00025,2]
[424116182,1780601448000,-2586.85809042,0.00025237,2]
[424116132,1780601448000,-947.51,0.00024999,2]
[424116129,1780601448000,-578.96200856,0.00024999,2]
[424116127,1780601448000,-578.96,0.00024999,2]
[424116126,1780601448000,-578.96,0.00024999,2]
[424116128,1780601448000,-578.96,0.00024999,2]
[424116130,1780601448000,-947.51,0.00024999,2]
[424116131,1780601448000,-947.51,0.00024999,2]
[424116133,1780601448000,-947.51,0.00024999,2]
[424116144,1780601448000,-858050.26235381,0.00025,2]
[424116137,1780601448000,-540.0,0.00025,2]
[424116136,1780601448000,-8068.71507145,0.00025,2]
[424116151,1780601448000,-187.729829,0.00025,2]
[424116135,1780601448000,-977.1744,0.00025,2]
[424116139,1780601448000,-3092.24521926,0.00025,2]
[424116142,1780601448000,-170.0099826,0.00025,2]
[424116140,1780601448000,-7243.68629212,0.00025,2]
[424116134,1780601448000,-947.63,0.00024999,2]
[424116141,1780601448000,-2235.82725069,0.00025,2]
[424116146,1780601448000,-151.0,0.00025,2]
[424116145,1780601448000,-151.0,0.00025,2]
[424116156,1780601448000,-99211.0,0.00025,2]
[424116147,1780601448000,-1541.829306,0.00025,2]
[424116148,1780601448000,-1541.829306,0.00025,2]
[424116149,1780601448000,-1541.829306,0.00025,2]
[424116150,1780601448000,-1541.829303,0.00025,2]
[424116143,1780601448000,-628.36340733,0.00025,5]
[424116183,1780601448000,-500.0,0.00025237,2]
[424116125,1780601448000,-578.96,0.00024999,2]
[424116184,1780601448000,-855.0561165,0.00025237,2]
[424116222,1780601448000,-5530.0,0.000261,5]
[424116223,1780601448000,-10338.00722513,0.00026152,2]
[424116217,1780601448000,-198.0,0.00026027,2]
[424116218,1780601448000,-161.0,0.00026027,2]
[424116224,1780601448000,-723.76,0.0002627,2]
[424116219,1780601448000,-189.0,0.00026027,2]
[424116221,1780601448000,-200.0,0.00026097,2]
[424116220,1780601448000,-205.85407487,0.00026028,7]
[424116226,1780601448000,-8068.71507145,0.000263,2]
[424116225,1780601448000,-3430.7,0.00026296,2]
[424116228,1780601448000,-500.0,0.00026333,2]
[424116227,1780601448000,-2781.82699784,0.00026333,2]
[424116216,1780601448000,-200.0,0.00026027,2]
[424116236,1780601448000,-1038.4812984,0.00026667,7]
[424116238,1780601448000,-1124.0,0.00026743,2]
[424116237,1780601448000,-237.77690519,0.00026743,2]
[424116230,1780601448000,-360.96183466,0.00026388,2]
[424116234,1780601448000,-584.0972482,0.00026634,2]
[424116239,1780601448000,-525.0,0.00026848,2]
[424116233,1780601448000,-2435.69,0.00026632,2]
[424116231,1780601448000,-958.81929743,0.00026388,2]
[424116232,1780601448000,-27950.98067662,0.000264,2]
[424116235,1780601448000,-168.3888056,0.00026659,2]
[424116240,1780601448000,-1273.0,0.00026848,2]
[424116241,1780601448000,-1315.003,0.00026848,2]
[424116243,1780601448000,-200.0,0.00026874,2]
[424116229,1780601448000,-233.5188934,0.00026333,2]
[424116215,1780601448000,-200.0,0.00026027,2]
[424116242,1780601448000,-5694.07,0.00026861,7]
[424116212,1780601448000,-6009.6,0.00026027,2]
[424116213,1780601448000,-357.97,0.00026027,7]
[424116185,1780601448000,-217.15233878,0.00025237,2]
[424116186,1780601448000,-162.380719,0.0002529,2]
[424116187,1780601448000,-335.66323249,0.00025292,2]
[424116188,1780601448000,-251.11897888,0.00025292,2]
[424116191,1780601448000,-1124.0,0.00025406,2]
[424116189,1780601448000,-891.61887448,0.00025292,2]
[424116192,1780601448000,-8068.71507145,0.000255,2]
[424116190,1780601448000,-200.0,0.00025319,2]
[424116195,1780601448000,-8068.71507145,0.000257,2]
[424116203,1780601448000,-2794.86,0.00025786,2]
[424116205,1780601448000,-348.0827721,0.0002584,2]
[424116204,1780601448000,-23038.87,0.00025786,2]
[424116194,1780601448000,-5530.0,0.000255,3]
[424116193,1780601448000,-553.1,0.000255,7]
[424116199,1780601448000,-500.0,0.00025785,2]
[424116197,1780601448000,-450.0,0.00025767,2]
[424116211,1780601448000,-220.0515582,0.00026,2]
[424116209,1780601448000,-610.7929362,0.0002599,2]
[424116214,1780601448000,-229.19,0.00026027,31]
[424116206,1780601448000,-241.37132186,0.0002584,2]
[424116210,1780601448000,-8068.71507145,0.00026,2]
[424116208,1780601448000,-219.03646807,0.0002596,2]
[424116201,1780601448000,-400.14,0.00025786,2]
[424116196,1780601448000,-437.4,0.00025767,2]
[424116198,1780601448000,-2682.57183977,0.00025785,2]
[424116200,1780601448000,-225.18697532,0.00025785,2]
[424116202,1780601448000,-11422.57,0.00025786,2]
[424116207,1780601448000,-924.60877283,0.0002584,2]
[424116281,1780601449000,-308.147385,0.00027397,2]
[424116283,1780601449000,-308.147385,0.00027397,2]
[424116279,1780601449000,-308.147385,0.00027397,2]
[424116280,1780601449000,-308.147385,0.00027397,2]
[424116278,1780601449000,-308.147385,0.00027397,2]
[424116269,1780601449000,-150.0,0.00027397,2]
[424116282,1780601449000,-308.147385,0.00027397,2]
[424116288,1780601449000,-151.0,0.00027397,2]
[424116277,1780601449000,-308.147385,0.00027397,2]
[424116273,1780601449000,-1000.0,0.00027397,20]
[424116284,1780601449000,-308.147385,0.00027397,2]
[424116286,1780601449000,-151.0,0.00027397,2]
[424116297,1780601449000,-151.0,0.00027397,2]
[424116287,1780601449000,-151.0,0.00027397,2]
[424116289,1780601449000,-151.0,0.00027397,2]
[424116291,1780601449000,-151.0,0.00027397,2]
[424116294,1780601449000,-151.0,0.00027397,2]
[424116275,1780601449000,-308.147385,0.00027397,2]
[424116293,1780601449000,-151.0,0.00027397,2]
[424116292,1780601449000,-151.0,0.00027397,2]
[424116298,1780601449000,-151.0,0.00027397,2]
[424116300,1780601449000,-429.29912762,0.00027397,2]
[424116290,1780601449000,-151.0,0.00027397,2]
[424116296,1780601449000,-151.0,0.00027397,2]
[424116299,1780601449000,-218.668307,0.00027397,2]
[424116295,1780601449000,-151.0,0.00027397,2]
[424116285,1780601449000,-308.147385,0.00027397,2]
[424116272,1780601449000,-3083.68,0.00027397,2]
[424116268,1780601449000,-259.11494659,0.00027397,2]
[424116271,1780601449000,-6009.6,0.00027397,2]
[424116302,1780601449000,-151.0,0.00027397,2]
[424116244,1780601449000,-2884.75459676,0.00026881,2]
[424116245,1780601449000,-500.0,0.00026881,2]
[424116246,1780601449000,-242.15909246,0.00026881,2]
[424116249,1780601449000,-250.0,0.00027,2]
[424116251,1780601449000,-167.41989989,0.00027,2]